[Event "Skalica Open 2019"]
[Site "Skalica"]
[Date "2019.08.25"]
[Round "1.17"]
[White "Karas, Marek"]
[Black "Chan, Naruna"]
[Result "1-0"]
[ECO "D30"]
[WhiteElo "2233"]
[BlackElo "1950"]
[Annotator "NA"]
[PlyCount "101"]
[EventDate "2019.08.25"]
[EventType "swiss"]
[EventCountry "SVK"]
[SourceTitle "playchess.com"]
[Source "ChessBase"]
[SourceQuality "1"]
[TimeControl "40/5400+30:1800+30"]

1. d4 d5 {[%emt 0:00:00]} 2. c4 {[%emt 0:00:25]} e6 {[%emt 0:00:00]} 3. Nf3 {[%emt 0:00:45]} Nf6 {[%emt 0:00:00]} 4. e3 {[%emt 0:01:32]} Be7 {[%emt 0:03:23]} 5. Bd3 {[%emt 0:02:19]} O-O {[%emt 0:00:35]} 6. O-O {[%emt 0:00:49]} a6 {[%emt 0:05:21]} 7. Nbd2 {[%emt 0:02:58]} c5 {[%emt 0:02:40]} 8. dxc5 {[%emt 0:02:11]} Bxc5 {[%emt 0:02:03]} 9. a3 {[%emt 0:01:52]} dxc4 {[%emt 0:05:16]} 10. Nxc4 {[%emt 0:01:11]} b5 {[%emt 0:02:29]} 11. Nce5 {[%emt 0:00:46]} Bb7 {[%emt 0:02:35]} 12. Qe2 {[%emt 0:05:08]} Bd6 {[%emt 0:03:10]} 13. b4 {[%emt 0:03:30]} Nbd7 {[%emt 0:02:13]} 14. Bb2 {[%emt 0:03:22]} Nxe5 {[%emt 0:04:01]} 15. Nxe5 {[%emt 0:00:16]} Bxe5 {[%emt 0:00:22]} 16. Bxe5 {[%emt 0:00:20]} Bxg2 {[%emt 0:03:28]} 17. Rfd1 {[%emt 0:01:06]} Bd5 {[%emt 0:03:00]} 18. e4 {[%emt 0:02:34]} Bc6 {[%emt 0:10:19]} 19. Rac1 {[%emt 0:12:01]} Nd7 {[%emt 0:11:04]} 20. Bb2 {[%emt 0:03:36]} Rc8 {[%emt 0:01:53]} 21. Qg4 {[%emt 0:02:12]} Nf6 {[%emt 0:10:26]} 22. Qf4 {[%emt 0:06:51]} Qe7 {[%emt 0:03:51]} 23. Rc5 {[%emt 0:02:35]} Rfd8 {[%emt 0:03:14]} 24. Rg5 {[%emt 0:00:59]} Ne8 {[%emt 0:01:25]} 25. Rg3 {[%emt 0:05:48]} f6 {[%emt 0:02:18]} 26. Kh1 {[%emt 0:02:47]} e5 {[%emt 0:00:18]} 27. Qh4 {[%emt 0:02:00]} Bd7 {[%emt 0:06:49]} 28. Rdg1 {[%emt 0:02:22]} Be6 {[%emt 0:00:55]} 29. Bf1 {[%emt 0:04:28]} Rd2 {[%emt 0:00:52]} 30. Bxe5 {[%emt 0:01:21]} Rxf2 {[%emt 0:04:41]} 31. Bd4 {[%emt 0:00:28]} Rxf1 {[%emt 0:02:13]} 32. Rxf1 {[%emt 0:00:26]} Kh8 {[%emt 0:00:14]} 33. e5 {[%emt 0:01:12]} Qb7+ {[%emt 0:00:29]} 34. Kg1 {[%emt 0:00:23]} f5 {[%emt 0:01:45]} 35. Rh3 {[%emt 0:01:30]} h6 {[%emt 0:01:15]} 36. Bc5 {[%emt 0:01:16]} Nc7 {[%emt 0:02:43]} 37. Qf4 {[%emt 0:00:56]} Nd5 {[%emt 0:00:19]} 38. Qd2 {[%emt 0:01:23]} Re8 {[%emt 0:00:21]} 39. Rd3 {[%emt 0:01:29]} Nb6 {[%emt 0:00:44]} 40. Rd8 {[%emt 0:00:18]} Rg8 {[%emt 0:00:43]} 41. Rxg8+ {[%emt 0:33:38]} Bxg8 {[%emt 0:30:06]} 42. Qg2 {[%emt 0:02:44]} Qc7 {[%emt 0:00:00]} 43. Rxf5 {[%emt 0:00:00]} Nc4 {[%emt 0:00:00]} 44. Qe4 {[%emt 0:00:00]} Qd7 {[%emt 0:00:00]} 45. Bd4 Qe8 {[%emt 0:00:00]} 46. Rf2 {[%emt 0:00:00]} Qh5 {[%emt 0:00:00]} 47. h4 {[%emt 0:00:00]} Bh7 {[%emt 0:00:00]} 48. Rf8+ {[%emt 0:00:00]} Bg8 {[%emt 0:00:00]} 49. e6 {[%emt 0:00:00]} Qd1+ {[%emt 0:00:00]} 50. Kh2 {[%emt 0:00:00]} Qd2+ {[%emt 0:01:28]} 51. Rf2 {[%emt 0:00:00]} 1-0

[Event "Skalica Open 2019"]
[Site "Skalica"]
[Date "2019.08.25"]
[Round "1.18"]
[White "Kovarikova, Maria"]
[Black "Bochnicka, Vladimir"]
[Result "1/2-1/2"]
[ECO "B25"]
[WhiteElo "1854"]
[BlackElo "2193"]
[Annotator "NA"]
[PlyCount "78"]
[EventDate "2019.08.25"]
[EventType "swiss"]
[EventCountry "SVK"]
[SourceTitle "playchess.com"]
[Source "ChessBase"]
[SourceQuality "1"]
[TimeControl "40/5400+30:1800+30"]

1. e4 {[%emt 0:00:00]} c5 {[%emt 0:00:02]} 2. Nc3 {[%emt 0:00:00]} Nc6 {[%emt 0:00:12]} 3. g3 {[%emt 0:00:00]} g6 {[%emt 0:02:30]} 4. Bg2 {[%emt 0:00:00]} Bg7 {[%emt 0:00:20]} 5. d3 {[%emt 0:00:00]} d6 {[%emt 0:04:49]} 6. f4 {[%emt 0:01:03]} e5 {[%emt 0:02:26]} 7. Nh3 {[%emt 0:09:24]} Nge7 {[%emt 0:03:03]} 8. O-O {[%emt 0:01:50]} O-O {[%emt 0:03:03]} 9. f5 {[%emt 0:07:49]} gxf5 {[%emt 0:18:54]} 10. Qh5 {[%emt 0:04:26]} Nd4 {[%emt 0:18:56]} 11. Bh6 {[%emt 0:18:58]} Bxh6 {[%emt 0:20:56]} 12. Qxh6 {[%emt 0:01:14]} f6 {[%emt 0:00:10]} 13. exf5 {[%emt 0:14:11]} Bxf5 {[%emt 0:05:43]} 14. Nd5 {[%emt 0:11:33]} Nxd5 {[%emt 0:02:18]} 15. Bxd5+ {[%emt 0:00:23]} Be6 {[%emt 0:02:29]} 16. Be4 {[%emt 0:03:22]} Qd7 {[%emt 0:03:57]} 17. Nf2 {[%emt 0:15:02]} f5 {[%emt 0:01:33]} 18. Bg2 {[%emt 0:00:25]} Qg7 {[%emt 0:00:47]} 19. Qd2 {[%emt 0:00:33]} f4 {[%emt 0:01:11]} 20. c3 {[%emt 0:02:59]} Nf5 {[%emt 0:03:37]} 21. g4 {[%emt 0:01:38]} Ne3 {[%emt 0:01:41]} 22. Rfe1 {[%emt 0:01:41]} Nxg2 {[%emt 0:00:21]} 23. Kxg2 {[%emt 0:00:19]} Bxg4 {[%emt 0:00:09]} 24. Rg1 {[%emt 0:01:13]} Rf6 {[%emt 0:02:03]} 25. Nxg4 {[%emt 0:00:25]} Rg6 {[%emt 0:00:09]} 26. Kh1 {[%emt 0:00:14]} Kh8 {[%emt 0:00:32]} 27. Nf2 {[%emt 0:00:32]} Rg8 {[%emt 0:00:22]} 28. Rxg6 {[%emt 0:01:51]} Qxg6 {[%emt 0:00:10]} 29. Ne4 {[%emt 0:00:16]} d5 {[%emt 0:01:06]} 30. Nxc5 {[%emt 0:00:18]} b6 {[%emt 0:00:35]} 31. Nb3 {[%emt 0:00:43]} f3 {[%emt 0:00:45]} 32. Qf2 {[%emt 0:01:29]} Qxd3 {[%emt 0:00:31]} 33. Re1 {[%emt 0:00:45]} Rg2 {[%emt 0:00:36]} 34. Qh4 {[%emt 0:00:48]} Qg6 {[%emt 0:00:32]} 35. Qd8+ {[%emt 0:00:26]} Kg7 {[%emt 0:00:01]} 36. Qe7+ {[%emt 0:00:12]} Kg8 {[%emt 0:00:36]} 37. Qd8+ {[%emt 0:00:38]} Kg7 {[%emt 0:00:35]} 38. Qe7+ {[%emt 0:00:09]} Kg8 {[%emt 0:00:20]} 39. Qd8+ {[%emt 0:00:17]} Kg7 {[%emt 0:00:48]} 1/2-1/2

[Event "Skalica Open 2019"]
[Site "Skalica"]
[Date "2019.08.25"]
[Round "1.23"]
[White "Londin, Martin"]
[Black "Hrubsa, Marian"]
[Result "0-1"]
[ECO "C01"]
[WhiteElo "1930"]
[BlackElo "1888"]
[Annotator "NA"]
[PlyCount "72"]
[EventDate "2019.08.25"]
[EventType "swiss"]
[EventCountry "SVK"]
[SourceTitle "playchess.com"]
[Source "ChessBase"]
[SourceQuality "1"]
[TimeControl "40/5400+30:1800+30"]

1. e4 {[%emt 0:00:00]} e6 {[%emt 0:00:00]} 2. d4 {[%emt 0:00:00]} d5 {[%emt 0:00:00]} 3. exd5 {[%emt 0:00:00]} exd5 {[%emt 0:00:00]} 4. Nc3 {[%emt 0:00:06]} c6 {[%emt 0:01:53]} 5. Nf3 {[%emt 0:00:40]} Bd6 {[%emt 0:00:16]} 6. Bd3 {[%emt 0:00:28]} Ne7 {[%emt 0:00:28]} 7. O-O {[%emt 0:00:15]} O-O {[%emt 0:00:36]} 8. Bd2 {[%emt 0:02:17]} Bf5 {[%emt 0:01:01]} 9. Bxf5 {[%emt 0:01:57]} Nxf5 {[%emt 0:00:54]} 10. Re1 {[%emt 0:00:27]} Nd7 {[%emt 0:03:32]} 11. Be3 {[%emt 0:10:36]} Re8 {[%emt 0:07:46]} 12. Qd3 {[%emt 0:01:58]} Nh4 {[%emt 0:01:56]} 13. Bd2 {[%emt 0:01:49]} Nxf3+ {[%emt 0:03:32]} 14. Qxf3 {[%emt 0:00:16]} Qh4 {[%emt 0:00:56]} 15. g3 {[%emt 0:03:18]} Qxd4 {[%emt 0:03:10]} 16. Be3 {[%emt 0:01:50]} Qf6 {[%emt 0:02:50]} 17. Qxf6 {[%emt 0:03:52]} Nxf6 {[%emt 0:01:17]} 18. Re2 {[%emt 0:00:14]} Ne4 {[%emt 0:08:46]} 19. Nxe4 {[%emt 0:00:43]} Rxe4 {[%emt 0:00:54]} 20. c3 {[%emt 0:00:14]} Rae8 {[%emt 0:01:30]} 21. Rae1 {[%emt 0:00:23]} f5 {[%emt 0:05:13]} 22. Kf1 {[%emt 0:01:08]} b6 {[%emt 0:03:42]} 23. f3 {[%emt 0:01:08]} R4e6 {[%emt 0:01:25]} 24. Kf2 {[%emt 0:01:27]} h6 {[%emt 0:05:35]} 25. h4 {[%emt 0:01:17]} Rg6 {[%emt 0:00:48]} 26. f4 {[%emt 0:02:08]} h5 {[%emt 0:04:22]} 27. Kf3 {[%emt 0:01:01]} Rge6 {[%emt 0:00:56]} 28. Kf2 {[%emt 0:01:04]} Kf7 {[%emt 0:00:31]} 29. Kf3 {[%emt 0:00:28]} Re4 {[%emt 0:01:17]} 30. Kf2 {[%emt 0:01:17]} R8e6 {[%emt 0:00:39]} 31. b3 {[%emt 0:02:09]} g6 {[%emt 0:04:13]} 32. Kf3 {[%emt 0:02:09]} Ke7 {[%emt 0:00:45]} 33. Rd2 {[%emt 0:01:12]} Kd7 {[%emt 0:04:30]} 34. Rd3 {[%emt 0:01:37]} Kc7 {[%emt 0:00:35]} 35. Ke2 {[%emt 0:00:33]} Bc5 {[%emt 0:01:59]} 36. Kd2 {[%emt 0:02:47]} d4 {[%emt 0:02:27]} 0-1

[Event "Skalica Open 2019"]
[Site "Skalica"]
[Date "2019.08.25"]
[Round "1.24"]
[White "Palka, Miroslav"]
[Black "Ralbovsky, Milan"]
[Result "1-0"]
[ECO "A10"]
[WhiteElo "1869"]
[BlackElo "1340"]
[Annotator "NA"]
[PlyCount "69"]
[EventDate "2019.08.25"]
[EventType "swiss"]
[EventCountry "SVK"]
[SourceTitle "playchess.com"]
[Source "ChessBase"]
[SourceQuality "1"]
[TimeControl "40/5400+30:1800+30"]

1. c4 {[%emt 0:00:00]} g6 {[%emt 0:00:07]} 2. e4 {[%emt 0:00:00]} e6 {[%emt 0:00:49]} 3. Nc3 {[%emt 0:00:00]} b6 {[%emt 0:00:42]} 4. d4 {[%emt 0:00:08]} Bg7 {[%emt 0:00:11]} 5. Be3 {[%emt 0:00:18]} Bb7 {[%emt 0:01:01]} 6. f3 {[%emt 0:00:08]} d6 {[%emt 0:01:04]} 7. Qd2 {[%emt 0:00:07]} Nd7 {[%emt 0:01:21]} 8. O-O-O {[%emt 0:00:20]} Ne7 {[%emt 0:00:38]} 9. g4 {[%emt 0:00:33]} c6 {[%emt 0:05:59]} 10. h4 {[%emt 0:00:27]} f6 {[%emt 0:02:45]} 11. Bh6 {[%emt 0:01:06]} Rg8 {[%emt 0:06:53]} 12. Bxg7 {[%emt 0:00:33]} Rxg7 {[%emt 0:00:02]} 13. Nh3 {[%emt 0:01:01]} Ng8 {[%emt 0:04:27]} 14. d5 {[%emt 0:00:45]} e5 {[%emt 0:02:27]} 15. dxc6 {[%emt 0:00:15]} Bxc6 {[%emt 0:13:58]} 16. Qxd6 {[%emt 0:00:09]} Rc8 {[%emt 0:00:33]} 17. Kb1 {[%emt 0:01:22]} Qe7 {[%emt 0:03:10]} 18. Qd2 {[%emt 0:00:34]} Rd8 {[%emt 0:00:11]} 19. Nd5 {[%emt 0:00:15]} Bxd5 {[%emt 0:02:17]} 20. cxd5 {[%emt 0:00:06]} Rc8 {[%emt 0:04:02]} 21. Ba6 {[%emt 0:00:30]} Rc5 {[%emt 0:00:35]} 22. b4 {[%emt 0:01:26]} Rxd5 {[%emt 0:07:01]} 23. exd5 {[%emt 0:00:34]} f5 {[%emt 0:00:12]} 24. Ng5 {[%emt 0:00:25]} Ngf6 {[%emt 0:02:40]} 25. Rc1 {[%emt 0:00:18]} Qd6 {[%emt 0:01:44]} 26. Ne6 {[%emt 0:00:59]} Re7 {[%emt 0:01:04]} 27. Rc8+ {[%emt 0:00:10]} Kf7 {[%emt 0:00:26]} 28. Ng5+ {[%emt 0:00:45]} Kg7 {[%emt 0:00:32]} 29. Rd1 {[%emt 0:00:17]} fxg4 30. Rc6 Qb8 {[%emt 0:08:34]} 31. Ne6+ {[%emt 0:00:23]} Kh8 {[%emt 0:05:04]} 32. Rc8+ {[%emt 0:00:11]} Ne8 {[%emt 0:01:17]} 33. Rxb8 {[%emt 0:00:53]} Nxb8 {[%emt 0:00:03]} 34. Qh6 {[%emt 0:00:17]} Nxa6 {[%emt 0:00:48]} 35. Qf8# {[%emt 0:00:14]} 1-0

[Event "Skalica Open 2019"]
[Site "Skalica"]
[Date "2019.08.26"]
[Round "2.1"]
[White "Sahidi, Samir"]
[Black "Demidov, Mikhail"]
[Result "0-1"]
[ECO "B06"]
[WhiteElo "2366"]
[BlackElo "2556"]
[Annotator "ChessBase"]
[PlyCount "120"]
[EventDate "2019.08.25"]
[EventType "swiss"]
[EventCountry "SVK"]
[SourceTitle "playchess.com"]
[Source "ChessBase"]
[SourceQuality "1"]
[TimeControl "40/5400+30:1800+30"]

1. d4 {[%emt 0:00:00]} g6 {[%emt 0:00:00]} 2. e4 {[%emt 0:00:40]} Bg7 {[%emt 0:00:00]} 3. Nc3 {[%emt 0:01:25]} d6 {[%emt 0:00:44]} 4. Be3 {[%emt 0:02:21]} a6 {[%emt 0:00:38]} 5. Qd2 {[%emt 0:05:13]} b5 {[%emt 0:00:36]} 6. f3 {[%emt 0:05:23]} Bb7 {[%emt 0:01:29]} 7. h4 {[%emt 0:04:31]} h5 {[%emt 0:01:20]} 8. Nh3 {[%emt 0:02:04]} Nf6 {[%emt 0:01:32]} 9. Be2 {[%emt 0:16:59]} Nbd7 {[%emt 0:00:46]} 10. O-O {[%emt 0:01:08]} e6 {[%emt 0:01:24]} 11. a4 {[%emt 0:01:04]} b4 {[%emt 0:01:17]} 12. Na2 {[%emt 0:00:37]} a5 {[%emt 0:00:08]} 13. c4 {[%emt 0:00:24]} bxc3 {[%emt 0:00:44]} 14. Nxc3 {[%emt 0:00:26]} O-O {[%emt 0:00:27]} 15. Bg5 {[%emt 0:02:15]} Qb8 {[%emt 0:00:45]} 16. Rfc1 {[%emt 0:01:43]} Rc8 {[%emt 0:02:57]} 17. Nb5 {[%emt 0:04:09]} c6 {[%emt 0:02:56]} 18. Na3 {[%emt 0:00:45]} Ba6 {[%emt 0:03:18]} 19. Bxa6 {[%emt 0:04:10]} Rxa6 {[%emt 0:00:03]} 20. Bf4 {[%emt 0:01:20]} Ne8 {[%emt 0:03:09]} 21. Kh1 {[%emt 0:02:28]} c5 {[%emt 0:07:37]} 22. Be3 {[%emt 0:03:21]} cxd4 {[%emt 0:02:44]} 23. Rxc8 {[%emt 0:03:45]} Qxc8 {[%emt 0:00:27]} 24. Bxd4 {[%emt 0:00:05]} Bxd4 {[%emt 0:03:57]} 25. Qxd4 {[%emt 0:00:09]} Qc5 {[%emt 0:00:53]} 26. Rd1 {[%emt 0:01:44]} Qxd4 {[%emt 0:03:12]} 27. Rxd4 {[%emt 0:00:16]} Rb6 {[%emt 0:00:22]} 28. Nb5 {[%emt 0:05:35]} Kf8 {[%emt 0:02:39]} 29. Ng5 {[%emt 0:07:45]} Rc6 {[%emt 0:05:44]} 30. Kh2 {[%emt 0:04:28]} Ke7 {[%emt 0:01:25]} 31. Na3 {[%emt 0:01:40]} Nb6 {[%emt 0:02:56]} 32. Nb5 {[%emt 0:02:45]} e5 {[%emt 0:05:01]} 33. Rd3 {[%emt 0:01:07]} f6 {[%emt 0:02:52]} 34. Nh3 {[%emt 0:00:06]} Nxa4 {[%emt 0:10:48]} 35. Ra3 {[%emt 0:00:16]} Nxb2 {[%emt 0:00:24]} 36. Rxa5 {[%emt 0:00:09]} Rc5 {[%emt 0:01:10]} 37. Ra7+ {[%emt 0:00:10]} Kf8 {[%emt 0:00:15]} 38. Rb7 {[%emt 0:00:51]} Nd3 {[%emt 0:01:54]} 39. Rb6 {[%emt 0:01:12]} Ke7 {[%emt 0:04:10]} 40. Rb7+ {[%emt 0:00:33]} Kd8 {[%emt 0:00:30]} 41. Rb6 {[%emt 0:32:05]} Kd7 {[%emt 0:45:26]} 42. Rb7+ {[%emt 0:00:40]} Nc7 {[%emt 0:02:27]} 43. Nxc7 {[%emt 0:00:20]} Rxc7 {[%emt 0:00:04]} 44. Rb8 {[%emt 0:01:12]} Rc2 {[%emt 0:00:50]} 45. Kg1 {[%emt 0:03:39]} f5 {[%emt 0:04:33]} 46. Rg8 {[%emt 0:07:02]} fxe4 {[%emt 0:01:43]} 47. fxe4 {[%emt 0:00:09]} Re2 {[%emt 0:00:25]} 48. Rg7+ {[%emt 0:00:00]} Kc6 {[%emt 0:00:00]} 49. Rxg6 {[%emt 0:00:00]} Rxe4 {[%emt 0:00:00]} 50. Rh6 {[%emt 0:00:00]} Re1+ {[%emt 0:00:00]} 51. Kh2 {[%emt 0:00:00]} e4 {[%emt 0:00:00]} 52. Ng5 {[%emt 0:00:00]} Ne5 {[%emt 0:00:00]} 53. Kg3 {[%emt 0:00:00]} Kd5 {[%emt 0:00:00]} 54. Rxh5 {[%emt 0:00:00]} Rf1 {[%emt 0:00:00]} 55. Nxe4 {[%emt 0:00:00]} Kxe4 {[%emt 0:00:00]} 56. Rh8 {[%emt 0:00:00]} d5 {[%emt 0:00:00]} 57. h5 {[%emt 0:00:00]} d4 {[%emt 0:00:00]} 58. h6 {[%emt 0:00:00]} Rh1 {[%emt 0:00:00]} 59. h7 {[%emt 0:00:00]} d3 {[%emt 0:00:00]} 60. Kf2 {[%emt 0:00:00]} d2 {[%emt 0:00:00]} 0-1

[Event "Skalica Open 2019"]
[Site "Skalica"]
[Date "2019.08.26"]
[Round "2.3"]
[White "Vykouk, Jan"]
[Black "Komliakov, Viktor"]
[Result "1/2-1/2"]
[ECO "B11"]
[WhiteElo "2477"]
[BlackElo "2366"]
[Annotator "ChessBase"]
[PlyCount "103"]
[EventDate "2019.08.25"]
[EventType "swiss"]
[EventCountry "SVK"]
[SourceTitle "playchess.com"]
[Source "ChessBase"]
[SourceQuality "1"]
[TimeControl "40/5400+30:1800+30"]

1. e4 {[%emt 0:00:00]} c6 {[%emt 0:00:00]} 2. Nc3 {[%emt 0:02:28]} d5 {[%emt 0:00:01]} 3. Nf3 {[%emt 0:00:07]} Bg4 {[%emt 0:00:58]} 4. h3 {[%emt 0:00:08]} Bxf3 {[%emt 0:00:08]} 5. Qxf3 {[%emt 0:00:06]} e6 {[%emt 0:01:40]} 6. g3 {[%emt 0:00:52]} Nf6 {[%emt 0:04:02]} 7. Bg2 {[%emt 0:00:54]} Bb4 {[%emt 0:01:13]} 8. O-O {[%emt 0:02:49]} Bxc3 {[%emt 0:01:57]} 9. Qxc3 {[%emt 0:00:05]} dxe4 {[%emt 0:00:08]} 10. b3 {[%emt 0:00:04]} Nbd7 {[%emt 0:02:41]} 11. Bb2 {[%emt 0:05:11]} Nb6 {[%emt 0:01:37]} 12. Rfe1 {[%emt 0:01:08]} Nbd5 {[%emt 0:01:45]} 13. Qe5 {[%emt 0:02:09]} Qc7 {[%emt 0:02:26]} 14. Qxc7 {[%emt 0:07:41]} Nxc7 {[%emt 0:00:07]} 15. Bxe4 {[%emt 0:00:03]} Nxe4 {[%emt 0:00:32]} 16. Rxe4 {[%emt 0:00:06]} f6 {[%emt 0:00:42]} 17. d4 {[%emt 0:01:05]} Kf7 {[%emt 0:00:36]} 18. c4 {[%emt 0:00:20]} Rhe8 {[%emt 0:07:13]} 19. Rae1 {[%emt 0:05:22]} Na6 {[%emt 0:03:20]} 20. Bc3 {[%emt 0:01:17]} Rad8 {[%emt 0:04:52]} 21. g4 {[%emt 0:04:26]} c5 {[%emt 0:04:51]} 22. f4 {[%emt 0:01:02]} cxd4 {[%emt 0:01:53]} 23. Rxd4 {[%emt 0:02:30]} Rxd4 {[%emt 0:01:22]} 24. Bxd4 {[%emt 0:00:05]} b6 {[%emt 0:03:34]} 25. Kf2 {[%emt 0:01:09]} Rd8 {[%emt 0:09:49]} 26. Ke3 {[%emt 0:00:45]} h5 {[%emt 0:00:13]} 27. g5 {[%emt 0:02:36]} Nb4 {[%emt 0:11:07]} 28. Re2 {[%emt 0:00:28]} Nc6 {[%emt 0:05:34]} 29. Bc3 {[%emt 0:01:00]} Rd1 {[%emt 0:06:13]} 30. Re1 {[%emt 0:04:25]} Rd7 {[%emt 0:05:56]} 31. Re2 {[%emt 0:03:56]} Rd1 {[%emt 0:00:07]} 32. Rd2 {[%emt 0:07:59]} Rh1 {[%emt 0:01:09]} 33. Rd7+ {[%emt 0:00:09]} Kg6 {[%emt 0:00:15]} 34. gxf6 {[%emt 0:00:33]} gxf6 {[%emt 0:01:28]} 35. Rd6 {[%emt 0:01:07]} Rxh3+ {[%emt 0:00:07]} 36. Kd2 {[%emt 0:00:02]} Rh2+ {[%emt 0:00:37]} 37. Kd1 {[%emt 0:01:58]} Ne7 {[%emt 0:05:08]} 38. Rxe6 {[%emt 0:00:33]} Ng8 {[%emt 0:00:02]} 39. Re2 {[%emt 0:02:43]} Rxe2 {[%emt 0:00:52]} 40. Kxe2 {[%emt 0:00:08]} Kf5 {[%emt 0:00:08]} 41. Kf3 {[%emt 0:30:08]} Ne7 {[%emt 0:30:21]} 42. b4 {[%emt 0:09:35]} Ng6 {[%emt 0:05:35]} 43. Bd2 {[%emt 0:01:16]} h4 {[%emt 0:02:52]} 44. Be3 {[%emt 0:02:47]} h3 {[%emt 0:00:00]} 45. c5 {[%emt 0:00:00]} bxc5 {[%emt 0:00:00]} 46. Bxc5 {[%emt 0:00:00]} Nxf4 {[%emt 0:00:00]} 47. Kg3 {[%emt 0:00:00]} a6 {[%emt 0:00:00]} 48. a4 {[%emt 0:00:00]} Ke6 {[%emt 0:00:00]} 49. b5 {[%emt 0:00:00]} axb5 {[%emt 0:00:00]} 50. axb5 {[%emt 0:00:00]} Kd7 {[%emt 0:00:00]} 51. Be3 {[%emt 0:00:00]} Nd5 {[%emt 0:00:00]} 52. Bg1 {[%emt 0:00:00]} 1/2-1/2

[Event "Skalica Open 2019"]
[Site "Skalica"]
[Date "2019.08.26"]
[Round "2.4"]
[White "Czebe, Attila"]
[Black "Jablonicky, Martin"]
[Result "1-0"]
[ECO "A45"]
[WhiteElo "2413"]
[BlackElo "2343"]
[Annotator "ChessBase"]
[PlyCount "122"]
[EventDate "2019.08.25"]
[EventType "swiss"]
[EventCountry "SVK"]
[SourceTitle "playchess.com"]
[Source "ChessBase"]
[SourceQuality "1"]
[TimeControl "40/5400+30:1800+30"]

1. d4 {[%emt 0:00:00]} Nf6 {[%emt 0:00:00]} 2. g3 {[%emt 0:00:24]} g6 {[%emt 0:00:00]} 3. Bg2 {[%emt 0:00:04]} Bg7 {[%emt 0:00:00]} 4. e4 {[%emt 0:00:14]} O-O {[%emt 0:00:45]} 5. e5 {[%emt 0:02:23]} Ne8 {[%emt 0:00:06]} 6. Nf3 {[%emt 0:02:25]} d6 {[%emt 0:02:43]} 7. O-O {[%emt 0:00:16]} Nc6 {[%emt 0:02:10]} 8. exd6 {[%emt 0:03:08]} exd6 {[%emt 0:00:23]} 9. Bg5 {[%emt 0:03:10]} Nf6 {[%emt 0:00:37]} 10. Qc1 {[%emt 0:00:27]} Bg4 {[%emt 0:01:16]} 11. Qf4 {[%emt 0:00:56]} Bxf3 {[%emt 0:07:36]} 12. Bxf3 {[%emt 0:00:24]} h6 {[%emt 0:00:04]} 13. Bxf6 {[%emt 0:05:59]} Qxf6 {[%emt 0:01:59]} 14. Qxf6 {[%emt 0:00:08]} Bxf6 {[%emt 0:00:06]} 15. c3 {[%emt 0:00:03]} Ne7 {[%emt 0:02:00]} 16. Na3 {[%emt 0:00:03]} d5 {[%emt 0:01:22]} 17. Nc2 {[%emt 0:00:04]} c6 {[%emt 0:00:37]} 18. Bg4 {[%emt 0:01:14]} h5 {[%emt 0:01:02]} 19. Bh3 {[%emt 0:00:04]} Nc8 {[%emt 0:03:15]} 20. Bxc8 {[%emt 0:00:05]} Raxc8 {[%emt 0:00:04]} 21. Nb4 {[%emt 0:00:08]} Rfe8 {[%emt 0:01:27]} 22. Rfe1 {[%emt 0:00:11]} Kf8 {[%emt 0:01:25]} 23. Nd3 {[%emt 0:01:39]} Rxe1+ {[%emt 0:01:46]} 24. Rxe1 {[%emt 0:00:05]} b6 {[%emt 0:00:28]} 25. Kg2 {[%emt 0:04:11]} Re8 {[%emt 0:01:13]} 26. Rxe8+ {[%emt 0:01:37]} Kxe8 {[%emt 0:00:05]} 27. h4 {[%emt 0:02:50]} a5 {[%emt 0:03:40]} 28. f4 {[%emt 0:03:41]} Kd7 {[%emt 0:00:53]} 29. f5 {[%emt 0:00:36]} Kd6 {[%emt 0:11:09]} 30. fxg6 {[%emt 0:01:49]} fxg6 {[%emt 0:00:05]} 31. Nf4 {[%emt 0:15:26]} c5 {[%emt 0:00:03]} 32. dxc5+ {[%emt 0:00:44]} Kxc5 {[%emt 0:00:07]} 33. Nxg6 {[%emt 0:03:30]} d4 {[%emt 0:00:07]} 34. cxd4+ {[%emt 0:00:31]} Bxd4 {[%emt 0:00:11]} 35. Nf4 {[%emt 0:00:07]} Kc4 {[%emt 0:09:47]} 36. Nxh5 {[%emt 0:23:02]} Bxb2 {[%emt 0:00:05]} 37. g4 {[%emt 0:00:19]} b5 {[%emt 0:00:26]} 38. g5 {[%emt 0:00:18]} b4 {[%emt 0:01:07]} 39. Nf6 {[%emt 0:00:29]} a4 {[%emt 0:13:38]} 40. h5 {[%emt 0:00:25]} b3 {[%emt 0:04:52]} 41. axb3+ {[%emt 0:30:06]} axb3 {[%emt 0:30:05]} 42. h6 {[%emt 0:04:24]} Bxf6 {[%emt 0:00:10]} 43. gxf6 {[%emt 0:00:03]} b2 {[%emt 0:00:05]} 44. f7 {[%emt 0:00:02]} b1=Q {[%emt 0:00:08]} 45. f8=Q {[%emt 0:00:02]} Qg6+ {[%emt 0:08:07]} 46. Kh3 {[%emt 0:00:13]} Kd5 {[%emt 0:19:10]} 47. Qg7 {[%emt 0:00:09]} Qd3+ {[%emt 0:00:47]} 48. Kh4 {[%emt 0:00:41]} Qe4+ {[%emt 0:00:00]} 49. Qg4 {[%emt 0:00:00]} Qe1+ {[%emt 0:00:00]} 50. Kh5 {[%emt 0:00:00]} Qe8+ {[%emt 0:00:00]} 51. Qg6 {[%emt 0:00:00]} Qe2+ {[%emt 0:00:00]} 52. Kg5 {[%emt 0:00:00]} Qg2+ {[%emt 0:01:04]} 53. Kf6 {[%emt 0:00:00]} Qb2+ {[%emt 0:00:04]} 54. Kf7 {[%emt 0:00:00]} Qb7+ {[%emt 0:00:19]} 55. Kg8 {[%emt 0:00:00]} Qb8+ {[%emt 0:03:46]} 56. Kg7 {[%emt 0:00:00]} Qe5+ {[%emt 0:00:58]} 57. Qf6 {[%emt 0:00:00]} Qg3+ {[%emt 0:00:06]} 58. Kf7 {[%emt 0:00:00]} Qc7+ {[%emt 0:01:20]} 59. Kg6 {[%emt 0:00:00]} Ke4 {[%emt 0:01:36]} 60. h7 {[%emt 0:00:00]} Qg3+ {[%emt 0:00:04]} 61. Kh5 {[%emt 0:00:00]} Kd5 1-0